Cogmind - Beta 9.4 @@@ ROGUE MODE // 2020.02.23 @ 01:08:22 // Winter2019/RPGLIKE Player: NeraMorte Result: Destroyed by S-10 Pest with Light Assault Rifle Performance ------------- Evolutions (1) 500 Regions Visited (2) 400 Robots Destroyed (27) 135 Value Destroyed (588) 588 Prototype IDs (0) 0 Alien Tech Used (0) 0 Bonus (2) 2 TOTAL SCORE: 1625 Bonus ------- High Alert Combat Kills 2 Cogmind --------- Core Integrity 0/1000 Matter 300/300 Energy 250/250 System Corruption 0% Temperature Cool (0) Movement Walking (120) Location -9/Materials Parts ------- > --- POWER (1) -------- Ion Engine > --- PROPULSION (2) --- Aluminum Leg Aluminum Leg > --- UTILITY (2) ------ Visual Processing Unit Improved Terrain Scanner > --- WEAPON (3) ------- Ion Cannon Mining Claw > --- INVENTORY (2) ---- Ion Cannon Peak State ------------ > --- POWER ------------ Light Ion Engine > --- PROPULSION ------- Light Treads Aluminum Leg > --- UTILITY ---------- Visual Processing Unit Improved Terrain Scanner > --- WEAPON ----------- Light EM Pulse Cannon Ion Cannon Ion Cannon > --- INVENTORY -------- Ion Cannon [Rating: 15] Favorites ----------- Power Light Ion Engine Engine Light Ion Engine Propulsion Light Treads Treads Light Treads Leg Aluminum Leg Flight Unit Flight Unit Utility Visual Processing Unit Device Improved Terrain Scanner Processor Visual Processing Unit Weapon Ion Cannon Energy Cannon Ion Cannon Ballistic Gun Light Assault Rifle Slashing Weapon Mining Claw Build | -11 -10 -9 ------- Run | Scr Mat Mat Slots Evolved 4 | . 3 1 Power . | . . . Propulsion 1 | . 1 . Utility 1 | . 1 . Weapon 2 | . 1 1 Parts Attached 18 | 3 4 11 Power 2 | 1 . 1 Engine 2 | 1 . 1 Core . | . . . Reactor . | . . . Propulsion 7 | 1 1 5 Treads 2 | 1 . 1 Leg 3 | . 1 2 Wheel . | . . . Hover . | . . . Flight 2 | . . 2 Utility 2 | . 2 . Device 1 | . 1 . Storage . | . . . Processor 1 | . 1 . Hackware . | . . . Protection . | . . . Artifact . | . . . Weapon 7 | 1 1 5 Energy Gun . | . . . Energy Cannon 4 | . 1 3 Ballistic Gun 1 | 1 . . Ballistic Cannon . | . . . Launcher . | . . . Special Weapon . | . . . Impact Weapon . | . . . Slashing Weapon 2 | . . 2 Piercing Weapon . | . . . Special Melee Weapon . | . . . Unidentified Prototypes . | . . . Parts Lost 1 | . . 1 Power . | . . . Propulsion . | . . . Utility . | . . . Weapon 1 | . . 1 Highest Loss Streak 1 | . . 1 Average Slot Usage (%) 91 | . 79 97 Engine 14 | . 22 11 Treads 15 | . 22 11 Leg 5 | . . 7 Flight 3 | . . 5 Device 9 | . 2 12 Processor 10 | . 5 12 Energy Cannon 21 | . 2 29 Ballistic Gun 7 | . 22 1 Slashing Weapon 2 | . . 3 Naked Turns . | . . . Heaviest Build 22 | 4 9 22 Greatest Support 45 | 20 20 45 Greatest Overweight (x) 1 | 1 . 1 Average Overweight (x) . | . . . Largest Inventory Capacity 2 | . 2 2 Average Capacity 1 | . . 2 Most Carried 2 | . 1 2 Average Carried 1 | . . 1 Final Capacity 2 | . 2 2 Final Carried 1 | . . 1 Class Distribution -------------------- 52% | Mutant 23% | Skirmisher 15% | Scavenger-Skirmisher 9% | Scavenger-Mutant Dominant Class ---------------- Mutant | -10/Materials Skirmisher | -9/Materials Resources | -11 -10 -9 ----------- Run | Scr Mat Mat Matter Collected 402 | 215 67 120 Remotely . | . . . Salvage Created 583 | . 121 462 Parts 59 | . 15 44 Haulers Intercepted . | . . . Recyclers Shooed . | . . . Parts Field Recycled . | . . . Retrieved Matter . | . . . Parts Self-Destructed . | . . . Prevented . | . . . Kills | -11 -10 -9 ------- Run | Scr Mat Mat Combat Hostiles Destroyed 23 | . 3 20 Melee 5 | . . 5 Guns 1 | . 1 . Cannons 16 | . 2 14 AOE 1 | . . 1 Classes Destroyed 6 | . 2 4 Builder 2 | . . 2 Recycler 1 | . . 1 Watcher 1 | . 1 . Swarmer 12 | . . 12 Grunt 9 | . 3 6 Sentry 2 | . . 2 Best Kill Streak 5 | . 2 5 Combat Bots Only 4 | . 2 4 Max Kills in Single Turn 2 | . 1 2 Gunslinging . | . . . Exploded 1 | . . 1 Melee 1 | . . 1 Uniques/NPCs Destroyed . | . . . Combat | -11 -10 -9 -------- Run | Scr Mat Mat Damage Taken 1841 | . 162 1679 Core 1448 | . 134 1314 Absorbed by Shields . | . . . Redirected to Core 1190 | . 92 1098 Core Remaining (%) 100 | 100 100 . Volleys Fired 52 | . 22 30 Largest 3 | . 2 3 Hottest 176 | . 76 176 Shots Fired 107 | . 25 82 Gun 22 | . 22 . Cannon 85 | . 3 82 Launcher . | . . . Special . | . . . Kinetic 22 | . 22 . Thermal 53 | . . 53 Explosive . | . . . Electromagnetic 32 | . 3 29 Robot Hit Streak 9 | . 9 9 Robot Miss Streak 4 | . 2 4 Penetration Max . | . . . Secondary Targets . | . . . Shots Hit Robots 68 | . 17 51 Core Hits 29 | . 6 23 Critical Hits 1 | . . 1 Critical Kills 1 | . . 1 Critical Parts Destroyed . | . . . Melee Attacks 24 | . . 24 Impact . | . . . Slashing 24 | . . 24 Piercing . | . . . Sneak Attacks . | . . . Combat Hostiles . | . . . Follow-up Attacks . | . . . Damage Inflicted 1478 | . 174 1304 Guns 107 | . 107 . Cannons 817 | . 67 750 Explosions 297 | . . 297 Melee 257 | . . 257 Ramming . | . . . Kinetic 107 | . 107 . Thermal 412 | . . 412 Explosive 297 | . . 297 Electromagnetic 405 | . 67 338 Impact . | . . . Slashing 257 | . . 257 Piercing . | . . . Highest Corruption . | . . . Average Corruption . | . . . Corruption Purged . | . . . Overload Shots . | . . . Overflow Damage 28 | . . 28 Projectiles 1 | . . 1 Explosions 23 | . . 23 Melee 4 | . . 4 Knockbacks . | . . . Impact . | . . . Kinetic . | . . . Secondary . | . . . Self-Inflicted Damage 190 | . . 190 Shots 2 | . . 2 Rammed . | . . . Targets Rammed . | . . . Kicked . | . . . Crushed . | . . . Highest Temperature 376 | . 86 376 Average Temperature 97 | . 32 102 Received Heat Transfer 132 | . 90 42 Effects 1 | . . 1 Energy Bleed 1 | . . 1 Siege Activations . | . . . Robots Corrupted . | . . . Combat Hostiles . | . . . Parts Fried . | . . . Impact Corruptions . | . . . Robots Melted . | . . . Combat Hostiles . | . . . Parts Melted . | . . . Heat Transferred 666 | . . 666 Parts Sabotaged . | . . . Parts Stolen . | . . . Parts Stripped . | . . . Power Chain Reactions . | . . . Missiles Intercepted . | . . . Alert | -11 -10 -9 ------- Run | Scr Mat Mat Peak Influence 404 | . 117 404 Average Influence 143 | . 34 196 Maximum Alert Level 2 | . . 2 Low Security (%) 68 | 100 100 53 Level 1 30 | . . 44 Level 2 1 | . . 2 Level 3 . | . . . Level 4 . | . . . Level 5 . | . . . High Security . | . . . Max Security . | . . . Squads Dispatched 3 | . 2 1 Investigation 2 | . 1 1 Extermination . | . . . Reinforcement 1 | . 1 . Assault . | . . . Garrison . | . . . Intercept . | . . . Construction Impeded . | . . . Haulers Reinforced . | . . . Stealth | -11 -10 -9 --------- Run | Scr Mat Mat Distress Signals 2 | . . 2 Communications Jammed . | . . . Distress Signals . | . . . Times Spotted 32 | . 6 26 Peak Tracking Total 6 | . 2 6 Tactical Retreats 1 | . . 1 Traps | -11 -10 -9 ------- Run | Scr Mat Mat Traps Triggered 2 | . 1 1 Indirectly . | . . . Trap Hack Attempts . | . . . Triggered . | . . . Disarmed . | . . . Reprogrammed . | . . . Reused . | . . . Traps Extracted . | . . . Installed . | . . . Triggered . | . . . Machines | -11 -10 -9 ---------- Run | Scr Mat Mat Machines Disabled 4 | . . 4 Max in Single Turn 2 | . . 2 Machines Sabotaged . | . . . Garrisons Compromised . | . . . Overloaded Fab Kills . | . . . Fab Network Shutdowns . | . . . Hacking | -11 -10 -9 --------- Run | Scr Mat Mat Machines Accessed 2 | . . 2 Terminals 1 | . . 1 Fabricators . | . . . Repair Stations . | . . . Recycling Units . | . . . Scanalyzers 1 | . . 1 Garrison Access . | . . . Total Hacks 3 | . . 3 Successful 3 | . . 3 Failed . | . . . Catastrophic . | . . . Database Lockouts . | . . . Manual . | . . . Terminals 1 | . . 1 Fabricators . | . . . Repair Stations . | . . . Recycling Units . | . . . Scanalyzers 2 | . . 2 Garrison Access . | . . . Terminal Hacks 1 | . . 1 Surveillance Status 1 | . . 1 Fabricator Hacks . | . . . Repair Station Hacks . | . . . Recycling Unit Hacks . | . . . Scanalyzer 2 | . . 2 Insert Component 1 | . . 1 Analyze 1 | . . 1 Garrison Access Hacks . | . . . Unauthorized Hacks . | . . . Terminals . | . . . Fabricators . | . . . Repair Stations . | . . . Recycling Units . | . . . Scanalyzers . | . . . Garrison Access . | . . . Data Cores Recovered . | . . . Used . | . . . Hacking Detections . | . . . Full Trace Events . | . . . Feedback Events . | . . . Feedback Blocked . | . . . Robot Schematics Acquired . | . . . Robots Built . | . . . Matter . | . . . Time . | . . . Total Robot Build Rating . | . . . Part Schematics Acquired 1 | . . 1 Parts Built . | . . . Matter . | . . . Time . | . . . Total Part Build Rating . | . . . Parts Repaired . | . . . Time . | . . . Parts Recycled . | . . . Recycled Matter . | . . . Retrieved Matter . | . . . Retrieved Components . | . . . Parts Scanalyzed 1 | . . 1 Part Schematics Acquired 1 | . . 1 Parts Damaged . | . . . Bothacking | -11 -10 -9 ------------ Run | Scr Mat Mat Used RIF Installer . | . . . Robots Hacked . | . . . Non-combat . | . . . Combat . | . . . Robot Hacks Applied . | . . . Relay Couplers Released . | . . . Robots Rewired . | . . . Allies Hacked . | . . . Hacks Repelled . | . . . Allies | -11 -10 -9 -------- Run | Scr Mat Mat Total Allies . | . . . Largest Group . | . . . Highest-Rated Group . | . . . Highest-Rated Ally . | . . . Total Orders . | . . . Ally Attacks . | . . . Total Damage . | . . . Kills . | . . . Allies Corrupted . | . . . Allies Melted . | . . . Intel | -11 -10 -9 ------- Run | Scr Mat Mat Robot Analysis Total . | . . . Derelict Logs Recovered . | . . . Drone Launches . | . . . Drone Recoveries . | . . . Exploration | -11 -10 -9 ------------- Run | Scr Mat Mat Turns Passed 1052 | 46 289 717 Spaces Moved 475 | 34 141 300 Core 15 | 12 . 3 Treads 341 | 22 141 178 Legs 62 | . . 62 Wheels . | . . . Hover . | . . . Flight 57 | . . 57 Fastest Speed 50 | 50 160 100 Average Speed 149 | 124 160 146 Slowest Speed 160 | 160 160 160 Overloaded Moves . | . . . Propulsion Burnouts . | . . . Robots Hopped . | . . . Cave-ins Triggered . | . . . Exploration Rate (%) 21 | 4 29 30 Regions Visited 2 Branch Regions . Pre-discovered Areas . | . . . Known Exits Taken . | . . . Unknown Exits Taken 2 | 1 1 . Scrap Searched . | . . . Spaces Dug . | . . . Terrain Destroyed 37 | . . 37 Melee . | . . . Projectile 3 | . . 3 AOE 34 | . . 34 Actions | -11 -10 -9 --------- Run | Scr Mat Mat Total 683 | 36 183 464 Wait 75 | . 8 67 Move 473 | 33 140 300 Hop . | . . . Pick Up 8 | . 3 5 Fast Attach 10 | 3 1 6 Attach 6 | . 3 3 Detach . | . . . Swap 2 | . . 2 Drop 9 | . . 9 Fire 52 | . 22 30 Melee 24 | . . 24 Ram . | . . . Kick . | . . . Crush . | . . . Escape Stasis . | . . . Rewire . | . . . Trap . | . . . Miscellaneous 24 | . 6 18 Route ------- -11/Scrapyard -10/Materials -9/Materials History --------- Turn | Location | Event 2 | -11/Scrapyard | Met Revision 17 7 | -11/Scrapyard | Discovered new exit (range 16) 47 | -11/Scrapyard | Entered Materials 236 | -10/Materials | Discovered new exit (range 16) 270 | -10/Materials | Upgraded with Propulsion slot (x1) 270 | -10/Materials | Upgraded with Utility slot (x1) 270 | -10/Materials | Upgraded with Weapon slot (x1) 301 | -10/Materials | Build established: Mutant 336 | -10/Materials | Entered another Materials area 338 | -9/Materials | Reached level 2 341 | -9/Materials | Upgraded with Weapon slot (x1) 603 | -9/Materials | Core integrity fell below 50% 661 | -9/Materials | Reached level 3 986 | -9/Materials | Core integrity fell below 20% 1037 | -9/Materials | Reached level 4 1053 | -9/Materials | Destroyed by S-10 Pest with Light Assault Rifle Last Messages --------------- 00956_ Overheating: Energy bleed (-8). 00957_ U-05 Engineer builds a Wall. 00961_ Acquired 10 matter. 00966_ Dropped Lgt. EM Pulse Cannon. 00967_ Acquired 10 matter. 00970_ Destroyed Flight Unit. 00987_ S-10 Pest destroyed. 00996_ Critical hit. 00996_ Ion Cannon destroyed. 01003_ R-06 Scavenger collects Heat Sink. 01005_ K-01 Serf collects debris. 01006_ S-10 Pest suffers critical hit. 01006_ S-10 Pest destroyed. 01009_ K-01 Serf collects debris. 01012_ R-06 Scavenger collects Flight Unit. 01017_ W-16 Scout sends out distress signal. 01034_ S-10 Pest destroyed. 01037_ Reached level 4. 01037_ S-10 Pest destroyed. 01042_ K-01 Serf collects debris. Map ----- +----------------------------------------------------+ | # ## #?????# #= # #????? | | # ## #??#??# """ #% # "T" #????? | | ########### #????## """ # %############### | | ?????????# #????## """ #= | | ?????????# ##??#?# + | | #?#??#???# #??#??# """ # | | +##????????# ##???## """ ### ############ | | ???????????# #??##?# """ #?# #???#?????##??? | | ? ???#??#?# # ???# #?# #?????????????? | | ???? ???#??# #??? ?# """ #?# #??#??#?##????? | | ??? ?#????## #???"?# """ #?# #???#????????? | | ???????????# #?"???# """ #?# ##????????????? | | ???????????# # ????# #?# #???#???? %#??? | | ? ?????????########?????##########%##### # | | ??????????????????# ? ??# """ ] ## | | ??????????#????? ???????# "R" [%/ % | | ?????????????????#? ?"? # " " * ##* | | ????????????????????????# #### | | ?????????????????????"??#= #??? | | | ??????????????????#?? ??#%[ %[#??? | | ????????????+########+######+####### | | ?????????? ^ """" | | ?????????? ^ """"? | | ?????????? ""??? | | ????????????# ############/############ ^ ??? | | ????????????????????#??#s@ s #??##?#? ?? | | ??????????????????????## """ """ #??????#? """?? | | ?????????????????##????# """k""" #???????? "???? | | ???????????????????????#Y"""%""" #????????? "???? | | ???????????????????????+=%* =* #?#?????????????? | | ????????????????????#?## = ]#???????????????? | | ???????????????????????# [ [ #???????????????? | | ???????????????????????# #???????????????? | | ???????????????????????###########?#?????????????? | | ???????????????????????????#?????????????????????? | | ????????????????????#????????????????????????????? | | ?????????????????????????????????????????????????? | | ?????????????????????????????????????????????????? | | ?????????????????????????????????????????????????? | | ????????????????????????????????????#????????????? | | ?????????????????????????????????????????????????? | | ?????????????????????????????????????????????????? | | ?????????????????????????????????????????????????? | | ?????????????????????#???????????????????????????? | | ?????????????????????????????????????????????????? | | ?????????????????????????????????????????????????? | | ?????????????????????????????????????????????????? | | ?????????????????????????????????????????????????? | | ?????????????????????????????????????????????????? | | ?????????????????????????????????????????????????? | +----------------------------------------------------+ Best States ------------- Heat Dissipation 25 Energy Generation 10 Energy Capacity 250 Matter Stores 300 Matter Capacity 300 Sight Range 19 Robot Scan Range 4 Terrain Scan Range 16 Terrain Scan Density 10 Evasion (%) 50 Recoil Reduction 2 Item Schematics ----------------- Ion Cannon | -9/Materials | Scanalyzed Robot Schematics ------------------ None Fabricated ------------ Nothing Alien Tech Used ----------------- None Achievements -------------- None Challenges ------------ None RPGLIKE | -11 -10 -9 --------- Run | Scr Mat Mat Levels Raised 3 | . . 3 XP Earned 7536 | 3000 435 4101 XP Spent 4355 | . 2975 1380 Upgrades 20 | . 10 10 Propulsion Slot 1 | . 1 . Utility Slot 1 | . 1 . Weapon Slot 2 | . 1 1 Core Integrity 8 | . . 8 Mass Support 1 | . . 1 Inventory Capacity 2 | . 2 . Sight Range 1 | . 1 . Sensor Range 2 | . 2 . Melee Accuracy 2 | . 2 . Protomatter Created 263 | . 47 216 Integrity Restored 471 | . 134 337 Core 443 | . 134 309 Parts 28 | . . 28 Protomatter Decayed 86 | . . 86 Game ------ Seed ArcXenonDissipator Manual? 0 Play Time 00:21:02 Cumulative 45.6 hours Start 2020.02.23 @ 00:52:58 End 2020.02.23 @ 01:08:22 Sessions 1 Manual Loads 0 Difficulty Rogue Special Mode Winter2019/RPGLIKE Game No. 34 Rogue 34 Adventurer 0 Explorer 0 Win Type - Total 0 Types 0/0/0/0/0/0/0 Lore% 22 Gallery% 30 Achievement% 21 Wizard Run 0 Options --------- ASCII 0 Keyboard 0 Movement Numpad Keybinds 0 Fullscreen 1 Font 24/Smallcaps Map View 76x50 Tactical HUD 1 Map Filters NONE Filters NONE Steam 1 RUN: 7fe109f8-5b42-4f98-b103-7ec19308c833